[Event "Solidarity Match Ukraine-France 2022"]
[Site "Tornelo"]
[Date "2022.05.14"]
[Round "1.1"]
[White "Fressinet, Laurent"]
[Black "Eljanov, Pavel"]
[Result "1/2-1/2"]
[ECO "B10"]
[WhiteElo "2630"]
[BlackElo "2681"]
[Annotator "TA"]
[PlyCount "96"]
[EventDate "2022.05.13"]
[EventType "team-tourn"]
[EventCountry "NET"]
[SourceTitle "playchess.com"]
[Source "ChessBase"]
[SourceQuality "1"]
[WhiteTeam "France"]
[BlackTeam "Ukraine"]
[WhiteTeamCountry "FRA"]
[BlackTeamCountry "UKR"]
[TimeControl "900+10"]

{[%evp 9,96,18,17,9,12,9,3,0,0,-8,0,0,0,0,-6,0,8,6,8,14,22,8,32,19,27,0,0,0,0,0,0,-3,15,12,107,104,105,102,101,101,121,122,152,156,146,153,142,125,210,135,135,108,115,116,122,86,79,0,133,138,135,50,40,47,54,54,47,52,52,52,52,0,0,-30,-22,-23,-33,-40,0,0,11,0,0,0,12,0,0,-7,0]} 1. e4 {[%emt 0:00:10]} c6 {[%emt 0:00:13]} 2. Nf3 {[%emt 0:00:08]} d5 {[%emt 0:00:02]} 3. d3 {[%emt 0:00:02][%cal Bd2d3,Bd3d4,Bd4e5,Be5e6][%mdl 32]} g6 {[%emt 0:00:03]} 4. e5 {[%emt 0:00:50]} Bg7 {[%emt 0:00:03]} 5. d4 {[%emt 0:00:21]} f6 {[%emt 0:00:08]} 6. Nbd2 {[%emt 0:01:14] B10: Caro-Kann: 2 d3 and 2 c4.} Nd7 {[%emt 0:01:10][%cal Rf6e5]} 7. exf6 {[%emt 0:00:25] [#]} Ngxf6 $146 {[%emt 0:00:04]} ({Predecessor:} 7... exf6 8. Bd3 Nh6 9. O-O O-O 10. Re1 Re8 11. Nf1 Nf8 12. Ng3 Rxe1+ 13. Qxe1 Bg4 {½-½ (39) Taulbut,S (2380)-Wells,I Morecambe/ Lancashire 1981}) 8. Bd3 {[%emt 0:01:58]} O-O {[%emt 0:00:37][%cal Oe7e5]} 9. O-O {[%emt 0:00:16]} e5 {[%emt 0:00:45]} 10. dxe5 {[%emt 0:00:35]} Ng4 {[%emt 0:00:44]} 11. e6 {[%emt 0:00:36]} Nc5 {[%emt 0:01:07]} 12. h3 {[%emt 0:00:18]} Nxd3 {[%emt 0:00:24]} 13. cxd3 {[%emt 0:00:11]} Nh6 {[%emt 0:00:20]} 14. Re1 {[%emt 0:01:26] Hoping for e7.} Re8 {[%emt 0:00:17]} 15. Nb3 {[%emt 0:00:29] Black must now prevent Bg5.} Bxe6 {[%emt 0:00:08]} 16. Nc5 {[%emt 0:00:22][%csl LRb7,LRe6]} Bc8 {[%emt 0:01:42]} 17. Bg5 {[%emt 0:01:20]} Rxe1+ {[%emt 0:00:04]} 18. Qxe1 {[%emt 0:00:03]} Qf8 {[%emt 0:00:02]} 19. Be7 $36 {[%emt 0:00:52][%cal Bg5e7,Be7d6,Bd6e5][%mdl 2080] White fights for an advantage.} Qe8 {[%emt 0:00:21]} 20. Bd6 {[%emt 0:00:10]} Bf5 {[%emt 0:00:36]} 21. Be5 {[%emt 0:00:22]} b6 {[%emt 0:00:14]} (21... Bxe5 $11 22. Qxe5 Qxe5 23. Nxe5 Re8) 22. Bxg7 $16 {[%emt 0:01:08]} Qxe1+ {[%emt 0:01:35]} 23. Rxe1 {[%emt 0:00:04]} Kxg7 {[%emt 0:00:01]} 24. Ne6+ {[%emt 0:00:02]} Kg8 {[%emt 0:00:54]} 25. Neg5 {[%emt 0:01:27] Re7 is the strong threat. Pair of Knights!} Nf7 {[%emt 0:01:36]} 26. Nxf7 {[%emt 0:00:16]} Kxf7 {[%emt 0:00:03][%mdl 4096] Endgame KRB-KRN} 27. g4 {[%emt 0:00:02]} Bc8 {[%emt 0:00:29]} 28. Ne5+ {[%emt 0:00:32]} Ke6 {[%emt 0:00:29]} (28... Kf6 $16 {was called for.}) 29. Nxc6+ {[%emt 0:00:25]} Kd6 {[%emt 0:00:02]} 30. Nd4 {[%emt 0:00:04] 0x0.0024db30f5dadp-1022s more active pieces.} Ba6 {[%emt 0:00:28]} 31. Re6+ {[%emt 0:00:50]} Kd7 {[%emt 0:00:02]} 32. Re5 {[%emt 0:00:07]} Kd6 {[%emt 0:00:07] [#]} 33. Re6+ {[%emt 0:00:07]} (33. Re3 $1 $16) 33... Kc5 {[%emt 0:00:20]} (33... Kd7 $1 $11) 34. Nb3+ {[%emt 0:00:36]} Kb4 {[%emt 0:00:02] [#]} 35. Rd6 {[%emt 0:00:19]} (35. Re3 $1 $16) 35... Bxd3 $14 {[%emt 0:00:18]} 36. Rxd5 {[%emt 0:00:03]} Bc4 {[%emt 0:00:03][%csl LRb3,LRd5]} 37. Rd4 {[%emt 0:00:05] And now Nd2 would win.} b5 $1 {[%emt 0:00:13]} 38. Nc1 {[%emt 0:00:29]} Kc5 {[%emt 0:00:08]} 39. Rd1 {[%emt 0:00:04]} a5 {[%emt 0:01:18]} 40. b3 {[%emt 0:00:28]} (40. Kh2 $14) 40... Bg8 $11 {[%emt 0:00:04]} 41. Ne2 {[%emt 0:00:26]} a4 {[%emt 0:00:09]} 42. Rc1+ {[%emt 0:00:13]} Kb4 {[%emt 0:00:07]} 43. Nd4 {[%emt 0:00:06]} axb3 {[%emt 0:00:03]} (43... Ra6 $5 {[%cal Ra4b3]}) 44. axb3 {[%emt 0:00:06] The position is equal.} Bd5 {[%emt 0:01:07]} 45. Rd1 {[%emt 0:00:25]} Bf7 {[%emt 0:00:30]} 46. Rc1 {[%emt 0:00:21]} Bd5 {[%emt 0:00:11]} 47. Rd1 {[%emt 0:00:14]} Bg8 {[%emt 0:00:41]} 48. Rc1 {[%emt 0:00:28]} Bd5 {[%emt 0:00:08] Black defended with fortune.  Weighted Error Value: White=0.13 (very precise) /Black=0.15 (very precise)} 1/2-1/2

[Event "Solidarity Match Ukraine-France 2022"]
[Site "Tornelo"]
[Date "2022.05.14"]
[Round "1.2"]
[White "Sebag, Marie"]
[Black "Buksa, Nataliya"]
[Result "1-0"]
[ECO "B30"]
[WhiteElo "2472"]
[BlackElo "2406"]
[Annotator "TA"]
[PlyCount "143"]
[EventDate "2022.05.13"]
[EventType "team-tourn"]
[EventCountry "NET"]
[SourceTitle "playchess.com"]
[Source "ChessBase"]
[SourceQuality "1"]
[WhiteTeam "France"]
[BlackTeam "Ukraine"]
[WhiteTeamCountry "FRA"]
[BlackTeamCountry "UKR"]
[TimeControl "900+10"]

{[%evp 10,143,18,17,29,-28,29,11,25,24,29,25,27,17,28,26,20,30,20,-20,20,22,12,-125,-134,-299,-52,-44,-43,-128,-124,-126,-128,-121,-85,-179,-128,-134,-133,-131,-94,-91,-58,-47,-58,-48,-53,-41,-50,-64,0,-133,-74,-120,-114,-133,-114,-107,-49,-49,-49,-49,0,-24,18,12,16,0,0,0,0,0,0,-8,12,-8,-8,-8,0,0,0,0,0,0,168,168,183,134,694,692,593,560,466,141,143,22,1625,0,30,-8,28,-551,8,8,28,63,313,313,313,313,313,313,1053,1044,29970,29971,29970,29971,29970,29973,29976,29977,29978,29979,29979,29980,29982,29981,29983,29984,29984,29985,29995,29995,29996,29997]} 1. e4 {[%emt 0:00:10]} c5 {[%emt 0:00:15]} 2. Nc3 {[%emt 0:00:03]} Nc6 {[%emt 0:00:05]} 3. Bb5 {[%emt 0:00:03]} Nd4 {[%emt 0:00:03]} 4. Nf3 {[%emt 0:00:02]} e6 {[%emt 0:00:10]} 5. O-O {[%emt 0:00:06]} a6 {[%emt 0:00:06]} 6. Bd3 {[%emt 0:00:02]} Nc6 {[%emt 0:00:47] B30: Sicilian: 2...Nc6 3 Bb5, lines without ...g6.} 7. Re1 {[%emt 0:00:29] 7.e5 is becoming the main line.} (7. Be2 $142) 7... b5 {[%emt 0:00:25]} (7... g5 $142 $1 8. g3 d6) 8. e5 {[%emt 0:00:25]} d6 {[%emt 0:00:12] The position is equal.} 9. exd6 {[%emt 0:00:10]} Bxd6 {[%emt 0:00:03]} 10. a4 {[%emt 0:00:03]} b4 {[%emt 0:00:12]} 11. Ne4 {[%emt 0:00:02]} Be7 {[%emt 0:00:21][%cal Bd6e7,Be7f6,Bf6g5,Bg5f4][%mdl 32]} 12. b3 {[%emt 0:00:02]} Nf6 {[%emt 0:00:06]} 13. Bb2 {[%emt 0:00:02]} Bb7 {[%emt 0:00:02] [#]} 14. Nfg5 $146 {[%emt 0:00:40][%cal Og5f7] Hoping for Nxf7!} ({Predecessor:} 14. Ne5 Nxe5 15. Bxe5 O-O 16. Bxf6 gxf6 17. Qh5 f5 18. Re3 Qd4 19. c3 bxc3 20. dxc3 {0-1 (47) Atako,C (2088)-Tozer,R (2286) Uxbridge 2009}) 14... h6 {[%emt 0:01:41]} 15. Nxf6+ {[%emt 0:00:09]} Bxf6 {[%emt 0:00:42] [#]} 16. Qh5 $1 {[%emt 0:01:24]} Bxg5 $17 {[%emt 0:04:52]} 17. Bxg7 {[%emt 0:00:06] [#]} (17. h4 $17 {only move.} Be7 18. Rxe6) 17... Ke7 $1 {[%emt 0:00:05]} 18. h4 $1 $15 {[%emt 0:00:28]} Bf4 {[%emt 0:00:27]} (18... Bxd2 19. Qxc5+ (19. Qf5 $2 Bxe1 20. Qxc5+ Qd6 $19) 19... Qd6 20. Bf6+ $1 Kd7 21. Qxd6+ Kxd6 22. Red1 $14) 19. Bxh8 {[%emt 0:00:06]} (19. Qf5 $15 Bxd2 20. Qxc5+ Qd6 21. Bf6+ $1 Kd7 22. Qxd6+ Kxd6 23. Red1) 19... Qxh8 $17 {[%emt 0:00:03]} 20. Qxc5+ {[%emt 0:00:03]} Bd6 $1 {[%emt 0:00:01]} 21. Qb6 {[%emt 0:00:07]} Nd8 {[%emt 0:01:27][%mdl 1024] ...Qg7 is the strong threat. Black has strong compensation.} 22. c3 {[%emt 0:00:39]} (22. Qe3 $17 {was necessary.}) 22... bxc3 {[%emt 0:01:28]} (22... Rc8 $19 {Threatens to win with ...Bc5.} 23. Qd4 (23. Bxa6 $2 Rc6 $19) 23... Qxd4 24. cxd4 a5) 23. dxc3 {[%emt 0:00:03]} Qxc3 {[%emt 0:00:02]} 24. Rac1 {[%emt 0:00:37]} Qb4 {[%emt 0:00:12]} (24... Qxd3 $6 25. Rcd1 Qg6 26. Qxd6+ Ke8 27. f3 $11 (27. g3 Qf5 $11)) 25. Rc7+ {[%emt 0:01:28]} Ke8 {[%emt 0:01:15]} 26. Qxb4 {[%emt 0:00:30]} Bxb4 {[%emt 0:00:03] This bishop pair is nice.} 27. Rd1 {[%emt 0:00:15]} Rc8 {[%emt 0:01:05]} 28. Rxc8 {[%emt 0:01:19]} Bxc8 {[%emt 0:00:02]} 29. g4 {[%emt 0:00:01]} e5 {[%emt 0:01:28]} ({Better is} 29... Bb7 $15 30. h5 Ke7) 30. f3 {[%emt 0:00:26]} (30. g5 $1 $11 {remains equal.} hxg5 31. h5) 30... Bb7 {[%emt 0:00:05]} (30... Ne6 $142 $1 31. Bf5 Ke7) 31. Kf2 {[%emt 0:01:11]} (31. Be4 $142) 31... Ne6 {[%emt 0:00:09]} 32. Rc1 {[%emt 0:01:16]} Bc5+ {[%emt 0:00:21]} 33. Kg3 {[%emt 0:00:10]} Bd6 {[%emt 0:00:14]} (33... Ba3 $17 34. Rc4 Nc5) 34. Be4 $15 {[%emt 0:01:37]} Bxe4 {[%emt 0:00:02]} 35. fxe4 {[%emt 0:00:01]} Nc5 {[%emt 0:00:06]} (35... Bc5 $15 {was preferrable.}) 36. Kf3 {[%emt 0:01:24]} (36. b4 $5 {[%cal Rb4c5]} Nxe4+ 37. Kf3 Nd2+ 38. Ke3 Bxb4 39. Rc6 $11) 36... Nxb3 {[%emt 0:00:40]} 37. Rc8+ {[%emt 0:00:02]} Ke7 $1 {[%emt 0:00:35]} 38. g5 {[%emt 0:00:07]} h5 {[%emt 0:00:02]} 39. Rh8 {[%emt 0:00:06]} Bc5 {[%emt 0:00:12]} 40. Rxh5 {[%emt 0:00:06] aiming for Kg4.} Nd2+ {[%emt 0:00:01]} 41. Kg4 {[%emt 0:00:16][%cal Og5g6]} Bd4 {[%emt 0:00:13]} 42. Rh6 {[%emt 0:00:37] Strongly threatening a5.} Nxe4 {[%emt 0:00:03]} 43. Rxa6 {[%emt 0:00:06] And now a5 would win.} Nf2+ {[%emt 0:00:04]} 44. Kf5 {[%emt 0:01:29]} e4 {[%emt 0:00:04]} 45. Rc6 {[%emt 0:00:17]} e3 {[%emt 0:00:06] ( -> ...e2)} 46. Rc2 {[%emt 0:00:04] Black must now prevent a5.} Nd1 $2 {[%emt 0:00:55]} (46... Kd6 $11) 47. Ke4 $1 $18 {[%emt 0:00:21]} Bb6 {[%emt 0:01:02][%cal Oe3e2] [#]} (47... e2 48. Rxe2 Nc3+ 49. Kxd4+ $18) 48. Kf3 {[%emt 0:00:54]} Nf2 $2 {[%emt 0:00:02][%mdl 8192]} (48... Ba5 $16) 49. Rc6 {[%emt 0:00:49]} Bd4 {[%emt 0:00:02][%cal Of2e4]} 50. Rc4 {[%emt 0:00:08]} Bb6 {[%emt 0:00:12]} 51. Ke2 $2 {[%emt 0:00:28]} (51. h5 $18) 51... Nh3 {[%emt 0:00:05]} 52. Rg4 {[%emt 0:00:14] Prevents Ng1+.} ({Only move:} 52. Re4+ $16 Kf8 53. Rxe3 Nf4+ 54. Kf3 Bxe3 55. Kxe3 Nd5+ 56. Kd4) 52... Ke6 $2 {[%emt 0:00:12][%mdl 8192]} (52... f5 $11 53. gxf6+ Kxf6) 53. Rb4 $2 {[%emt 0:00:57]} (53. g6 $18) 53... Bc5 {[%emt 0:00:18]} 54. Rc4 {[%emt 0:00:17]} Ba7 {[%emt 0:00:23]} 55. Rc6+ $2 {[%emt 0:00:25][%mdl 8192] [#]} (55. Rc1 $11 {and White stays safe.}) 55... Ke5 $2 {[%emt 0:00:07]} (55... Kf5 $1 $19 {[%cal Rf5e4]} 56. Kd1 (56. Rf6+ $2 Ke4 $19) 56... Ng1) 56. Rc7 $11 {[%emt 0:00:21][%csl LRa7,LRf7]} Nf4+ {[%emt 0:00:10]} 57. Kf3 {[%emt 0:00:09]} e2 $2 {[%emt 0:00:03]} (57... Bb6 $1 $14 58. Re7+ (58. Rxf7 e2 $14) 58... Kd6) 58. Re7+ $18 {[%emt 0:00:04]} Kf5 {[%emt 0:00:11]} (58... Kd6 $2 59. Re4 Ne6 60. Kxe2 $18) 59. Rxf7+ {[%emt 0:00:28]} Kg6 {[%emt 0:00:02]} (59... Ke6 60. Rxf4 e1=Q 61. Re4+ Qxe4+ 62. Kxe4 $18) 60. Re7 {[%emt 0:00:12]} Bc5 $2 {[%emt 0:00:05]} (60... Kf5 61. a5 Ng6 62. Rf7+ Ke6 63. Rf6+ Ke5 64. Kxe2 Nxh4) 61. Re4 {[%emt 0:00:12]} Bb4 {[%emt 0:00:30]} 62. Kxf4 {[%emt 0:00:09] White mates.} e1=Q {[%emt 0:00:05]} 63. Rxe1 {[%emt 0:00:01]} Bxe1 {[%emt 0:00:01] KB-K3P} 64. Kg4 {[%emt 0:00:02]} Bd2 {[%emt 0:00:05]} 65. h5+ {[%emt 0:00:04][%cal Bh4h5,Bh5h6][%mdl 32]} Kf7 {[%emt 0:00:04]} 66. Kf5 {[%emt 0:00:04]} Kg7 {[%emt 0:00:03]} 67. h6+ {[%emt 0:00:07]} Kh7 {[%emt 0:00:14]} 68. Kf6 {[%emt 0:00:03]} Bb4 {[%emt 0:00:06]} 69. Kf7 {[%emt 0:00:06]} Bc3 {[%emt 0:00:03]} 70. a5 {[%emt 0:00:06][%cal Ba4a5,Ba5a6][%mdl 32]} Kh8 {[%emt 0:00:32]} 71. a6 {[%emt 0:00:06]} Bd4 {[%emt 0:00:02]} 72. g6 {[%emt 0:00:06] A wild game.  Weighted Error Value: White=0.49/Black=0.60} 1-0

[Event "Solidarity Match Ukraine-France 2022"]
[Site "Tornelo"]
[Date "2022.05.14"]
[Round "1.3"]
[White "Gatineau, Yovann"]
[Black "Berdnyk, Mariia"]
[Result "1-0"]
[ECO "A45"]
[WhiteElo "2367"]
[BlackElo "2290"]
[Annotator "TA"]
[PlyCount "71"]
[EventDate "2022.05.13"]
[EventType "team-tourn"]
[EventCountry "NET"]
[SourceTitle "playchess.com"]
[Source "ChessBase"]
[SourceQuality "1"]
[WhiteTeam "France"]
[BlackTeam "Ukraine"]
[WhiteTeamCountry "FRA"]
[BlackTeamCountry "UKR"]
[TimeControl "900+10"]

{[%evp 9,71,0,0,0,0,0,0,0,0,0,0,0,0,0,0,-10,0,0,0,-67,-72,-67,-55,-47,-57,-81,-54,-40,39,0,0,0,102,112,591,-43,-83,-120,245,0,280,171,224,220,523,240,251,35,48,58,549,528,627,627,773,669,1163,1160,29992,29993,29996,29997,29997,29998]} 1. d4 {[%emt 0:00:10]} Nf6 {[%emt 0:00:13]} 2. Bf4 {[%emt 0:00:02]} g6 {[%emt 0:00:02]} 3. Nc3 {[%emt 0:00:01]} d5 {[%emt 0:00:04]} 4. e3 {[%emt 0:00:02]} Bg7 {[%emt 0:00:02]} 5. h4 {[%emt 0:00:01]} h5 {[%emt 0:00:01]} 6. Nf3 {[%emt 0:00:02] A45: Trompowsky Attack.} O-O {[%emt 0:00:08][%cal Oc7c5]} 7. Ne5 {[%emt 0:00:02]} c5 {[%emt 0:00:01]} 8. Qd2 {[%emt 0:00:04] The position is equal.} cxd4 {[%emt 0:00:11]} 9. exd4 {[%emt 0:00:02]} Nc6 {[%emt 0:00:01]} 10. O-O-O {[%emt 0:00:08]} Bf5 {[%emt 0:00:07]} 11. Nxc6 {[%emt 0:01:52]} bxc6 {[%emt 0:00:04] [#]} 12. Be5 $146 {[%emt 0:00:01]} ({Predecessor:} 12. f3 c5 13. Be5 c4 14. Be2 a5 15. Rdg1 a4 16. Bxf6 Bxf6 17. g4 hxg4 18. fxg4 {0-1 (35) Shearsby,J (1673)-Stubbs,O (1905) Chess.com INT 2020}) 12... Qa5 {[%emt 0:02:44][%cal Of8b8]} 13. f3 {[%emt 0:01:51]} c5 {[%emt 0:01:44]} 14. Bd3 {[%emt 0:01:49]} (14. dxc5 $11 Qxc5 15. Qd4 Qxd4 16. Bxd4) 14... cxd4 $15 {[%emt 0:00:41]} 15. Bxd4 {[%emt 0:00:13] Strongly threatening Bxf5.} Bxd3 {[%emt 0:01:07]} 16. Qxd3 {[%emt 0:00:06]} Rab8 {[%emt 0:00:34]} 17. g4 {[%emt 0:03:27]} Qb4 {[%emt 0:01:30]} (17... hxg4 18. h5 Nxh5 19. Bxg7 Nxg7 20. Nxd5 $16) 18. b3 {[%emt 0:00:28]} hxg4 {[%emt 0:00:43]} (18... e6 $1 $15) 19. h5 {[%emt 0:01:52]} Nxh5 {[%emt 0:02:48] Threatens to win with ...Qa3+.} (19... gxh5 $2 20. fxg4 Rfe8 21. g5 $16) 20. Nxd5 {[%emt 0:02:57]} Qa3+ {[%emt 0:00:41]} (20... Nf4 $1 $11 {keeps the balance.} 21. Nxf4 (21. Nxb4 Nxd3+ 22. Rxd3 Rxb4 $11) 21... Rfd8) 21. Kb1 $16 {[%emt 0:00:04] White is much more active.} g3 {[%emt 0:01:19][%mdl 8192]} (21... Qd6 $16 {is a better chance.}) 22. Rdg1 $2 {[%emt 0:01:12]} (22. Qe3 $18 e5 23. Bc5 (23. Bxe5 Rfe8 $18)) 22... Qd6 $1 $15 {[%emt 0:01:34]} 23. Bxg7 {[%emt 0:01:39]} Nxg7 {[%emt 0:00:02][%mdl 8192] [#]} (23... Kxg7 $17 {and life is bright.} 24. Rh4 Rh8 25. Qc3+ Nf6 26. Nxf6 exf6) 24. Qd4 $2 {[%emt 0:00:21]} (24. Rxg3 $1 $18 {[%mdl 512]} Rfd8 (24... Rbd8 25. Rg5) 25. Rg5) 24... Rfe8 $2 {[%emt 0:00:38][%mdl 8192]} (24... Nh5 $2 25. Rxh5 $1 {[%mdl 512]} f6 26. Rh3 $18) (24... Rb5 $1 $11 {and Black stays safe.} 25. c4 (25. Qh4 Nh5 $15) 25... Rxd5 26. cxd5 (26. Qxd5 Qxd5 27. cxd5 Nf5 $11) 26... Nh5) 25. Qh4 {[%emt 0:00:16][%csl Gh1][%cal Rh4h8]} Nh5 {[%emt 0:00:02]} (25... f5 {was called for.}) 26. Qg5 $40 {[%emt 0:00:21][%mdl 1152] aiming for Rxh5. White has strong compensation. White has strong attack.} Ng7 {[%emt 0:01:22] [#]} (26... e5 $2 27. Rxh5 Qxd5 28. Rgh1 Qd1+ 29. Rxd1 $18) (26... Rb5 {is tougher.} 27. Rxh5 Rxd5 28. Qxd5 gxh5 29. Qxh5 (29. Qg5+ Kf8 $16) 29... e5 30. Rxg3+ Kf8) 27. Qh6 $1 {[%emt 0:00:13]} f5 {[%emt 0:00:01] [#]} 28. Nf4 {[%emt 0:00:10]} ({White must play} 28. Rh3 $1 $18 {[%cal Rh3g3]} Kf7 (28... g2 29. Rh2) 29. Rhxg3 $1) 28... Kf7 $14 {[%emt 0:00:12][%cal Oe8h8]} 29. Qg5 $1 {[%emt 0:00:22] Hoping for Rh6.} ({But not} 29. Rxg3 $2 Rh8 30. Qxh8 Rxh8 31. Rxh8 Qxf4 $19) 29... e5 $2 {[%emt 0:00:12][%mdl 8192] [#]} (29... Rb4 $1 $14 30. c4 (30. Nd3 Rd4 $11) 30... Rxc4 31. Qxg6+ (31. bxc4 {is a self mate.} Qb4+ 32. Kc1 Qxc4+ 33. Kd2 Rd8+) 31... Qxg6 32. Nxg6 Rd4 33. Rxg3 e5) 30. Rd1 $1 $18 {[%emt 0:00:11]} Qc6 {[%emt 0:00:52] [#]} 31. Nxg6 {[%emt 0:00:08][%cal Oh1h7][%mdl 512] Intending Rh7! and mate.} Rbc8 {[%emt 0:00:21] [#]} (31... Re6 32. Rh6) 32. c4 $1 {[%emt 0:00:11][%cal Oh1h7] Rh7! would kill now.} Rc7 {[%emt 0:00:02]} (32... Re6 33. Rh6) 33. Rh6 {[%emt 0:00:10]} Qxf3 {[%emt 0:00:06] [#]} 34. Nxe5+ $1 {[%emt 0:00:05][%mdl 576] Decoy, Clearance. White mates.} Rxe5 {[%emt 0:00:07]} (34... Kg8 35. Nxf3) 35. Qf6+ {[%emt 0:00:03]} Kg8 {[%emt 0:00:15]} 36. Rd8+ {[%emt 0:00:01] Weighted Error Value: White=0.61/Black=1.00} 1-0

[Event "Solidarity Match Ukraine-France 2022"]
[Site "Tornelo"]
[Date "2022.05.14"]
[Round "1.4"]
[White "Riff, Vincent"]
[Black "Petrovskyi, Vadym"]
[Result "1/2-1/2"]
[ECO "E04"]
[WhiteElo "2397"]
[BlackElo "2330"]
[Annotator "TA"]
[PlyCount "72"]
[EventDate "2022.05.13"]
[EventType "team-tourn"]
[EventCountry "NET"]
[SourceTitle "playchess.com"]
[Source "ChessBase"]
[SourceQuality "1"]
[WhiteTeam "France"]
[BlackTeam "Ukraine"]
[WhiteTeamCountry "FRA"]
[BlackTeamCountry "UKR"]
[TimeControl "900+10"]

{[%evp 12,72,29,0,0,0,0,0,0,-25,6,0,25,38,70,60,67,64,63,28,35,25,138,137,124,118,124,83,70,70,67,66,81,75,77,64,76,63,134,139,210,221,187,18,26,-42,-34,-54,-51,-143,-125,-129,-130,-223,-158,-185,-164,-213,0,-165,0,-182,0]} 1. d4 {[%emt 0:00:10]} Nf6 {[%emt 0:00:14]} 2. Nf3 {[%emt 0:00:03]} e6 {[%emt 0:00:16]} 3. c4 {[%emt 0:00:05]} Bb4+ {[%emt 0:00:01]} 4. Nbd2 {[%emt 0:00:05]} d5 {[%emt 0:00:11][%cal Bd7d5,Bd5c4,Bc4c3][%mdl 32]} 5. g3 {[%emt 0:00:16]} O-O {[%emt 0:00:14]} 6. Bg2 {[%emt 0:00:12]} dxc4 {[%emt 0:00:26]} 7. O-O {[%emt 0:00:10]} (7. a3 $5 {[%cal Ra3b4]} Bxd2+ 8. Bxd2 $11) 7... b5 {[%emt 0:00:44] E04: Open Catalan: 5 Nf3.} 8. a4 {[%emt 0:01:05]} c6 {[%emt 0:00:03]} 9. Qc2 {[%emt 0:01:15]} Bb7 {[%emt 0:01:10] The position is equal.} 10. b3 {[%emt 0:00:40] 10.Rd1 is vanishing.} c3 {[%emt 0:08:29]} (10... c5 $5 {[%cal Rc4c3]} 11. Bb2 bxa4 12. bxc4 Nbd7 $15) 11. Nb1 {[%emt 0:00:14] [#]} Qa5 $146 {[%emt 0:00:02]} ({Predecessor:} 11... c5 12. Nxc3 cxd4 13. Nxb5 Nc6 14. Qc4 Qe7 15. Nbxd4 Na5 16. Qb5 Rfd8 17. Bf4 Bc3 {1-0 (33) Caruana,F (2819)-Naiditsch,A (2695) Karlsruhe/Baden Baden 2019}) 12. Ne5 {[%emt 0:00:29]} Rc8 {[%emt 0:00:11]} 13. Nd3 {[%emt 0:00:05]} Be7 {[%emt 0:00:53] [#] ...b4 is the strong threat.} 14. Nxc3 {[%emt 0:00:11]} b4 {[%emt 0:00:24]} 15. Nb1 {[%emt 0:00:23][%cal Bc3b1,Bb1d2,Bd2c4][%mdl 32]} Nbd7 {[%emt 0:00:22]} 16. Nd2 {[%emt 0:00:04]} Rab8 {[%emt 0:00:06]} (16... Qa6 $11) 17. Nc4 $16 {[%emt 0:00:05]} Qd8 {[%emt 0:00:34]} 18. Bf4 {[%emt 0:00:06]} Ra8 {[%emt 0:00:01]} 19. Nd6 {[%emt 0:00:41] White is much more active.} Bxd6 {[%emt 0:00:03]} 20. Bxd6 {[%emt 0:00:01]} a5 {[%emt 0:00:01]} 21. Nc5 {[%emt 0:00:46]} Nxc5 {[%emt 0:00:03]} 22. dxc5 {[%emt 0:00:01]} Nd5 {[%emt 0:00:18]} 23. Rfd1 {[%emt 0:00:09][%cal Bf1d1,Bd1d4,Bd4h4][%mdl 32]} Qe8 {[%emt 0:00:24]} 24. Rd4 {[%emt 0:00:16]} e5 {[%emt 0:00:33]} (24... f6 $14) 25. Rh4 {[%emt 0:00:10][%csl Gh4][%cal Rc2h7]} g6 {[%emt 0:00:02]} (25... h6 $16 {was worth a try.}) 26. Qd2 $18 {[%emt 0:00:07] aiming for Bxd5.} f6 {[%emt 0:00:44][%cal Bf7f6,Bf6f5][%mdl 32] [#]} 27. Bh3 $2 {[%emt 0:00:27] A strong pair of Bishops.} (27. Qh6 Qf7 $11) (27. e4 $1 $18 {[%cal Re4d5]} Nc3 28. f4 (28. Qh6 Qf7 $11)) 27... Qf7 {[%emt 0:00:06]} 28. Rc1 {[%emt 0:01:43]} ({White should play} 28. e4 $11 Nc3 29. Bxc8 Bxc8 30. f4 Nxe4 31. Qe3) 28... Re8 $15 {[%emt 0:00:28]} 29. Bf1 {[%emt 0:01:06]} e4 {[%emt 0:00:45]} 30. Qd4 {[%emt 0:03:15]} (30. f3 $15) 30... f5 {[%emt 0:00:23]} 31. e3 {[%emt 0:00:21]} Ba6 {[%emt 0:00:09]} 32. Rc4 {[%emt 0:00:09]} (32. g4 $17) 32... Qf6 {[%emt 0:00:52]} 33. Qd1 {[%emt 0:00:16]} Qe6 {[%emt 0:00:42]} ({Inferior is} 33... Bxc4 34. Bxc4 h5 35. h3 (35. Bxd5+ cxd5 36. h3 Qe6 $17)) 34. Qd4 {[%emt 0:00:05]} (34. Rc2 $142) 34... Qf6 {[%emt 0:00:01]} ({Don't blunder} 34... Bxc4 $2 35. Bxc4 h5 36. Kg2) 35. Qd1 $1 {[%emt 0:00:01]} Qe6 {[%emt 0:00:08]} 36. Qd4 $1 {[%emt 0:00:02]} Qf6 $2 {[%emt 0:00:01] Never resign too early!  Weighted Error Value: White=0.24 (precise) /Black=0.30} (36... Bxc4 $19 37. Bxc4 h5) 1/2-1/2